[Event "FIDE World Cup O12-A 2024"]
[Site "Batumi"]
[Date "2024.06.28"]
[Round "6.1"]
[White "Wang, Ted"]
[Black "Obidov, Biloliddin"]
[Result "0-1"]
[ECO "B12"]
[WhiteElo "2034"]
[BlackElo "1998"]
[Annotator "NA RC"]
[PlyCount "138"]
[EventDate "2024.06.23"]
[EventType "swiss"]
[EventCountry "GEO"]
[SourceTitle "playchess.com"]
[Source "ChessBase"]
[SourceQuality "1"]
[TimeControl "5400+30"]

1. e4 {[%emt 0:00:02]} c6 {[%emt 0:00:04]} 2. d4 {[%emt 0:00:06]} d5 {[%emt 0:00:10]} 3. e5 {[%emt 0:00:03]} Bf5 {[%emt 0:00:05]} 4. Nf3 {[%emt 0:00:04]} e6 {[%emt 0:00:23]} 5. Be2 {[%emt 0:00:03]} c5 {[%emt 0:00:41]} 6. c3 {[%emt 0:00:25]} Nc6 {[%emt 0:03:12]} 7. O-O {[%emt 0:00:03]} Nge7 {[%emt 0:01:45]} 8. dxc5 {[%emt 0:01:01]} Bxb1 {[%emt 0:05:19] B12: Caro-Kann: Advance Variation.} 9. Rxb1 {[%emt 0:00:09]} Ng6 {[%emt 0:00:09]} 10. b4 {[%emt 0:01:37]} Ngxe5 {[%emt 0:02:28]} 11. Nxe5 {[%emt 0:01:35]} Nxe5 {[%emt 0:00:03]} 12. Be3 {[%emt 0:03:17]} ({Better is} 12. Bf4 Nc6 13. Qa4) 12... Be7 {[%emt 0:00:24]} 13. Bd4 {[%emt 0:00:43]} Bf6 {[%emt 0:02:24]} 14. Bxe5 {[%emt 0:01:06]} Bxe5 {[%emt 0:00:02]} 15. Bb5+ {[%emt 0:05:10]} Kf8 {[%emt 0:02:04]} 16. Rb3 {[%emt 0:08:30]} g6 {[%emt 0:00:38]} 17. f4 {[%emt 0:01:16]} Bf6 {[%emt 0:01:08]} 18. Be2 {[%emt 0:02:06]} Kg7 {[%emt 0:00:25]} ({Better is} 18... b6 $15 19. c4 bxc5 20. cxd5 exd5 21. bxc5 Rc8) 19. Qd3 {[%emt 0:04:00]} Qc7 {[%emt 0:01:09]} 20. Kh1 {[%emt 0:05:02]} b6 {[%emt 0:00:14]} 21. cxb6 {[%emt 0:03:24]} axb6 {[%emt 0:00:03]} 22. Qd2 {[%emt 0:02:19]} Rhc8 {[%emt 0:00:20]} 23. Rc1 {[%emt 0:02:13]} Ra7 {[%emt 0:06:39]} 24. Bd3 {[%emt 0:08:56]} Qd7 {[%emt 0:01:39]} 25. Rc2 {[%emt 0:04:26]} Rac7 {[%emt 0:01:37]} 26. Ba6 {[%emt 0:05:25]} Ra8 {[%emt 0:00:09]} 27. Bd3 {[%emt 0:00:42]} h6 {[%emt 0:07:45]} 28. Qf2 {[%emt 0:03:05]} Qd6 {[%emt 0:00:30]} 29. h3 {[%emt 0:01:39]} e5 {[%emt 0:07:18]} 30. fxe5 {[%emt 0:01:16]} Bxe5 {[%emt 0:00:02]} 31. Bb5 {[%emt 0:05:06]} Rac8 {[%emt 0:04:21]} 32. Qf3 {[%emt 0:03:07]} Qf6 {[%emt 0:08:54]} 33. Qxf6+ {[%emt 0:01:14]} Bxf6 {[%emt 0:00:00]} 34. Rd2 $17 {[%emt 0:02:36]} Rxc3 {[%emt 0:00:19]} 35. Rxc3 {[%emt 0:02:42]} Bxc3 {[%emt 0:00:03]} 36. Rxd5 {[%emt 0:00:14]} Bxb4 {[%emt 0:00:15]} 37. a4 {[%emt 0:00:55]} Rc1+ {[%emt 0:00:36]} 38. Kh2 {[%emt 0:00:26]} h5 {[%emt 0:00:21]} 39. Kg3 {[%emt 0:01:26]} Rc2 {[%emt 0:00:40]} 40. h4 {[%emt 0:02:48]} f5 {[%emt 0:02:55]} 41. Rd1 {[%emt 0:03:02]} Bc5 {[%emt 0:00:33]} 42. Bd3 {[%emt 0:03:10]} Ra2 {[%emt 0:00:31]} 43. Bb5 {[%emt 0:01:40]} Bf2+ {[%emt 0:00:49]} 44. Kh3 {[%emt 0:00:55]} f4 {[%emt 0:00:48]} 45. Rd7+ {[%emt 0:00:39]} Kh6 {[%emt 0:12:38]} 46. Rd6 {[%emt 0:06:24]} Ra1 {[%emt 0:02:20]} 47. g4 {[%emt 0:02:14]} fxg3 {[%emt 0:09:16]} 48. Bd3 {[%emt 0:00:36]} Rh1+ {[%emt 0:00:25]} 49. Kg2 {[%emt 0:00:05]} Rh2+ {[%emt 0:00:05]} 50. Kf3 {[%emt 0:00:05]} Kg7 {[%emt 0:00:11]} 51. Rxg6+ {[%emt 0:00:28]} Kf7 {[%emt 0:02:12]} 52. Rg5 {[%emt 0:02:15]} Rxh4 {[%emt 0:00:07]} 53. Bg6+ {[%emt 0:00:39]} Kf6 {[%emt 0:00:30]} 54. Rxh5 {[%emt 0:00:04]} Rg4 {[%emt 0:05:06]} 55. Rf5+ {[%emt 0:02:49]} Kxg6 {[%emt 0:00:18]} 56. Kxg4 {[%emt 0:00:09]} g2 {[%emt 0:00:32]} 57. Rg5+ {[%emt 0:00:27]} Kf6 {[%emt 0:00:02]} 58. Rf5+ {[%emt 0:00:15]} Ke6 {[%emt 0:00:08]} 59. Rxf2 {[%emt 0:00:04]} g1=Q+ {[%emt 0:00:06]} 60. Kf3 {[%emt 0:00:04]} Qd1+ {[%emt 0:00:15]} 61. Re2+ {[%emt 0:00:05]} Kd5 {[%emt 0:00:08]} 62. Ke3 {[%emt 0:00:02]} Qxa4 {[%emt 0:00:10]} 63. Rd2+ {[%emt 0:00:05]} Ke5 {[%emt 0:00:08]} 64. Rd3 {[%emt 0:00:10]} b5 {[%emt 0:00:04]} 65. Kd2 {[%emt 0:00:07]} b4 {[%emt 0:00:08]} 66. Kc1 {[%emt 0:00:11]} Qa1+ {[%emt 0:00:28]} 67. Kc2 {[%emt 0:00:05]} Qa2+ {[%emt 0:00:05]} 68. Kc1 {[%emt 0:00:03]} b3 {[%emt 0:00:11]} 69. Re3+ {[%emt 0:00:04]} Kd4 {[%emt 0:00:16]} 0-1

[Event "FIDE World Cup O12-A 2024"]
[Site "Batumi"]
[Date "2024.06.28"]
[Round "6.2"]
[White "Guo, Ethan"]
[Black "Yang, ZiLong"]
[Result "1-0"]
[ECO "B48"]
[WhiteElo "2136"]
[BlackElo "1874"]
[Annotator "NA RC"]
[PlyCount "101"]
[EventDate "2024.06.23"]
[EventType "swiss"]
[EventCountry "GEO"]
[SourceTitle "playchess.com"]
[Source "ChessBase"]
[SourceQuality "1"]
[TimeControl "5400+30"]

1. e4 {[%emt 0:00:02]} c5 {[%emt 0:00:10]} 2. Nf3 {[%emt 0:00:07]} e6 {[%emt 0:00:05]} 3. d4 {[%emt 0:00:04]} cxd4 {[%emt 0:00:06]} 4. Nxd4 {[%emt 0:00:06]} Nc6 {[%emt 0:00:07]} 5. Nc3 {[%emt 0:00:05]} Qc7 {[%emt 0:00:06]} 6. Be3 {[%emt 0:00:05]} a6 {[%emt 0:00:20]} 7. Qf3 {[%emt 0:00:11] B48: Sicilian: Taimanov: 5 Nc3 Qc7 6 Be3 a6 without Be2.} b5 {[%emt 1:33:06]} 8. Nxc6 {[%emt 0:00:09]} Qxc6 {[%emt 0:00:00]} 9. Bd3 {[%emt 0:00:20]} d6 {[%emt 0:01:00]} (9... Nf6 $11) 10. O-O {[%emt 0:03:44]} Nf6 {[%emt 0:00:00]} 11. a4 {[%emt 0:05:13]} b4 {[%emt 0:01:00]} 12. Nb5 {[%emt 0:00:58]} Qb7 {[%emt 0:00:00]} (12... axb5 $2 {is the wrong capture.} 13. Bxb5 Bd7 14. Bxc6 $18) 13. Nd4 {[%emt 0:01:50]} Be7 {[%emt 0:00:00]} 14. Nb3 {[%emt 0:06:43]} O-O {[%emt 0:00:00]} 15. Na5 {[%emt 0:01:04]} Qc7 {[%emt 0:00:00]} 16. Nc4 {[%emt 0:00:40]} Bb7 {[%emt 0:00:00]} 17. Bb6 {[%emt 0:08:01]} Qb8 {[%emt 0:00:00]} 18. a5 {[%emt 1:10:08] [#]} Nxe4 $1 {[%emt 0:00:00]} 19. Bxe4 {[%emt 0:00:00]} d5 {[%emt 0:00:00]} (19... Bxe4 $11 20. Qxe4 d5) 20. Bxh7+ {[%emt 0:00:00]} Kxh7 {[%emt 0:00:00]} 21. Qh5+ {[%emt 0:00:00]} Kg8 {[%emt 0:00:00]} 22. Ne5 {[%emt 0:00:00]} Qc8 {[%emt 0:00:00]} 23. Rad1 {[%emt 0:00:00]} Bf6 $18 {[%emt 0:00:00]} (23... Bd6 $16 {was necessary.}) 24. Ng4 {[%emt 0:00:00]} Be7 {[%emt 0:00:00]} 25. Rd3 {[%emt 0:00:00]} Qxc2 {[%emt 0:00:00]} 26. Rh3 {[%emt 0:00:00]} f6 {[%emt 0:00:00]} 27. Ne3 {[%emt 0:00:00]} Qe4 {[%emt 0:00:00]} 28. Rh4 {[%emt 0:00:00]} Qe5 {[%emt 0:00:00]} 29. Qh7+ {[%emt 0:00:00]} Kf7 {[%emt 0:00:00]} 30. Ng4 {[%emt 0:00:00]} Qxb2 {[%emt 0:00:00]} 31. Nh6+ {[%emt 0:00:00]} Ke8 {[%emt 0:00:00]} 32. Qxg7 {[%emt 0:00:00]} Qe5 {[%emt 0:02:13]} 33. Bc5 {[%emt 0:01:18]} Qc7 {[%emt 0:01:28]} 34. Bxb4 {[%emt 0:00:28]} Rc8 {[%emt 0:00:45]} 35. Qg6+ {[%emt 0:00:22]} Kd7 {[%emt 0:00:15]} 36. Bxe7 {[%emt 0:00:32]} Kxe7 {[%emt 0:00:01]} 37. Nf5+ {[%emt 0:00:24]} Kd8 {[%emt 0:00:32]} 38. Rh7 {[%emt 0:00:13]} Qc5 {[%emt 0:02:30]} 39. Rxb7 {[%emt 0:00:12]} exf5 {[%emt 0:00:04]} 40. Qxf5 {[%emt 0:01:15]} Qd6 {[%emt 0:00:28]} 41. Rd1 {[%emt 0:00:52]} Rc5 {[%emt 0:00:32]} 42. Rdb1 {[%emt 0:01:03]} Rxa5 {[%emt 0:01:44]} 43. Rb8+ {[%emt 0:00:37]} Kc7 {[%emt 0:00:12]} 44. R1b7+ {[%emt 0:00:42]} Kc6 {[%emt 0:00:01]} 45. Rb6+ {[%emt 0:00:16]} Kc5 {[%emt 0:00:22]} 46. Rxd6 {[%emt 0:00:16]} Kxd6 {[%emt 0:00:03]} 47. Rb1 {[%emt 0:00:23]} Rb5 {[%emt 0:01:35]} 48. Re1 {[%emt 0:00:28]} d4 {[%emt 0:02:44]} 49. Qe6+ {[%emt 0:00:08]} Kc5 {[%emt 0:00:34]} 50. Qe7+ {[%emt 0:06:31]} Kb6 {[%emt 0:00:26]} 51. Qxf8 {[%emt 0:00:00]} 1-0

[Event "FIDE World Cup O12-A 2024"]
[Site "Batumi"]
[Date "2024.06.28"]
[Round "6.3"]
[White "Syed Abdul Khader"]
[Black "Bulgak, Damir"]
[Result "0-1"]
[ECO "E20"]
[WhiteElo "2050"]
[BlackElo "1931"]
[Annotator "NA RC"]
[PlyCount "90"]
[EventDate "2024.06.23"]
[EventType "swiss"]
[EventCountry "GEO"]
[SourceTitle "playchess.com"]
[Source "ChessBase"]
[SourceQuality "1"]
[TimeControl "5400+30"]

1. d4 {[%emt 0:00:03]} Nf6 {[%emt 0:00:11]} 2. c4 {[%emt 0:00:04]} e6 {[%emt 0:00:28]} 3. Nc3 {[%emt 0:00:03]} Bb4 {[%emt 0:00:36]} 4. f3 {[%emt 0:00:05]} d5 {[%emt 0:01:23]} 5. a3 {[%emt 0:02:45]} Be7 {[%emt 0:00:41]} 6. e4 {[%emt 0:00:52]} dxe4 {[%emt 0:01:25] E20: Nimzo-Indian: 4 g3 and 4 f3.} 7. fxe4 {[%emt 0:00:09]} c5 {[%emt 0:00:17]} 8. d5 {[%emt 0:00:05]} exd5 {[%emt 0:00:06]} 9. exd5 {[%emt 0:00:12]} O-O {[%emt 0:00:11]} 10. Be2 {[%emt 0:01:12]} a6 {[%emt 0:00:20] is more profitable than 10...Re8 at the moment.} 11. Nf3 {[%emt 0:01:27]} Bd6 {[%emt 0:01:00]} 12. O-O {[%emt 0:02:55]} h6 {[%emt 0:01:49]} 13. Bd3 $146 {[%emt 0:02:57]} ({Predecessor:} 13. h3 Re8 14. Bd3 b5 15. cxb5 c4 16. Bxc4 Bxh3 17. gxh3 Qc8 18. Kg2 Qxc4 19. Qd4 axb5 20. Bxh6 {½-½ Wang,H (2709)-Svane,R (2625) FIDE World Cup 2023 (4.3)}) 13... Nbd7 {[%emt 0:09:41]} 14. Bc2 {[%emt 0:04:13]} b5 {[%emt 0:18:02]} 15. b3 {[%emt 0:06:19]} Ne5 {[%emt 0:04:29]} 16. Nxe5 {[%emt 0:31:14]} (16. h3 $1 $11 {feels stronger.}) 16... Bxe5 {[%emt 0:01:58]} 17. Qd3 {[%emt 0:00:19]} Re8 {[%emt 0:00:14]} (17... g6 $1 $15 {deserves consideration.} 18. Bf4 (18. Bxh6 $2 {is the wrong capture.} Ng4 $19) (18. cxb5 $2 axb5 19. Bxh6 Re8 $19) 18... bxc4 19. bxc4 Bf5) 18. Bf4 {[%emt 0:02:47]} Qd6 {[%emt 0:08:03]} (18... Bd4+ $15 19. Kh1 Bg4) 19. Ne2 {[%emt 0:20:17]} Bg4 {[%emt 0:07:24]} 20. Bxe5 $11 {[%emt 0:22:32]} Qxe5 {[%emt 0:09:13]} 21. Ng3 {[%emt 0:00:00]} Qg5 {[%emt 0:11:09]} 22. d6 {[%emt 0:00:00]} Re3 {[%emt 0:01:46]} 23. Qd2 {[%emt 0:00:00]} Rd8 {[%emt 0:01:23]} 24. cxb5 {[%emt 0:00:00]} axb5 {[%emt 0:00:44]} 25. a4 {[%emt 0:00:00]} bxa4 {[%emt 0:07:57]} 26. Rxa4 {[%emt 0:00:00]} Bd7 {[%emt 0:02:29]} 27. Raf4 {[%emt 0:00:00]} Qe5 {[%emt 0:00:19]} 28. Bd1 {[%emt 0:02:59]} Be6 {[%emt 0:01:26]} 29. Nf5 {[%emt 0:00:58]} Bxf5 {[%emt 0:01:39]} 30. Rxf5 {[%emt 0:00:02]} Qd4 {[%emt 0:00:25]} 31. Qf2 {[%emt 0:00:22]} Ne4 {[%emt 0:01:10]} 32. Rd5 {[%emt 0:01:08]} Nxf2 {[%emt 0:00:12]} 33. Rxd4 {[%emt 0:00:04]} cxd4 {[%emt 0:00:04]} 34. Kxf2 {[%emt 0:00:06]} Rxd6 {[%emt 0:00:03]} 35. Bf3 {[%emt 0:01:51]} Rxb3 {[%emt 0:00:06]} 36. Rd1 {[%emt 0:00:00]} Rb2+ {[%emt 0:00:15]} 37. Kg3 {[%emt 0:00:00]} d3 {[%emt 0:00:05]} 38. Kf4 {[%emt 0:01:30]} d2 {[%emt 0:00:12]} 39. Ke3 {[%emt 0:00:00]} Re6+ {[%emt 0:00:18]} 40. Kf2 {[%emt 0:00:00]} g5 {[%emt 0:00:12]} 41. Kf1 {[%emt 0:00:00]} Kg7 {[%emt 0:00:13]} 42. Kf2 {[%emt 0:00:00]} f5 {[%emt 0:00:10]} 43. h3 {[%emt 0:00:00]} Kg6 {[%emt 0:00:19]} 44. Ra1 {[%emt 0:00:00]} d1=Q+ {[%emt 0:00:05]} 45. Kg3 {[%emt 0:00:00]} Qd6# {[%emt 0:00:09]} 0-1

[Event "FIDE World Cup O12-A 2024"]
[Site "Batumi"]
[Date "2024.06.28"]
[Round "6.4"]
[White "Siddhanth Poonja"]
[Black "Haresh, Venkata Narayanaswam"]
[Result "1-0"]
[ECO "A39"]
[WhiteElo "1958"]
[BlackElo "1728"]
[Annotator "NA RC"]
[PlyCount "153"]
[EventDate "2024.06.23"]
[EventType "swiss"]
[EventCountry "GEO"]
[SourceTitle "playchess.com"]
[Source "ChessBase"]
[SourceQuality "1"]
[TimeControl "5400+30"]

1. c4 {[%emt 0:00:02]} c5 {[%emt 0:00:08]} 2. g3 {[%emt 0:00:06]} Nc6 {[%emt 0:00:19]} 3. Bg2 {[%emt 0:00:10]} g6 {[%emt 0:00:28]} 4. Nc3 {[%emt 0:00:08]} Bg7 {[%emt 0:00:09]} 5. Nf3 {[%emt 0:00:06]} Nf6 {[%emt 0:00:30]} 6. O-O {[%emt 0:00:10]} O-O {[%emt 0:01:51]} 7. d4 {[%emt 0:02:42]} d5 {[%emt 0:06:26]} 8. dxc5 {[%emt 0:08:57]} dxc4 {[%emt 0:08:08]} 9. Qa4 $1 {[%emt 0:01:11]} Nd5 {[%emt 0:02:29]} (9... Qa5 $142 $1) 10. Qxc4 {[%emt 0:16:00]} Nxc3 {[%emt 0:04:15]} 11. bxc3 {[%emt 0:00:05]} Qa5 {[%emt 0:13:02]} 12. Nd4 {[%emt 0:10:25]} Bd7 {[%emt 0:12:11]} 13. Be3 {[%emt 0:12:50]} Rac8 {[%emt 0:03:01]} 14. Rfb1 {[%emt 0:06:23]} b6 $14 {[%emt 0:08:52]} 15. Nxc6 {[%emt 0:14:59]} Bxc6 {[%emt 0:00:11]} 16. Bxc6 {[%emt 0:01:34]} Rxc6 {[%emt 0:00:25]} 17. Qb5 {[%emt 0:02:58]} Qxb5 {[%emt 0:14:04]} 18. Rxb5 {[%emt 0:00:02]} Bxc3 {[%emt 0:06:04]} 19. Rab1 {[%emt 0:00:13]} Ba5 {[%emt 0:03:13]} 20. cxb6 {[%emt 0:03:37]} Bxb6 {[%emt 0:00:18]} 21. Bxb6 {[%emt 0:00:06]} Rxb6 {[%emt 0:00:32]} 22. Rxb6 {[%emt 0:00:01]} axb6 {[%emt 0:00:00]} 23. Rxb6 {[%emt 0:00:01]} Ra8 {[%emt 0:00:45]} 24. Rb2 {[%emt 0:00:06]} Ra3 {[%emt 0:00:35]} 25. Kf1 {[%emt 0:00:25]} Kg7 {[%emt 0:00:51]} 26. Ke1 {[%emt 0:00:05]} Kf6 {[%emt 0:01:15]} 27. Kd2 {[%emt 0:00:56]} Ke6 {[%emt 0:00:27]} 28. Kc2 {[%emt 0:00:11]} Kd6 {[%emt 0:02:30]} 29. Kb1 {[%emt 0:00:07]} Kc6 {[%emt 0:03:42]} 30. Rb3 {[%emt 0:00:56]} Ra7 {[%emt 0:00:30]} 31. Kb2 {[%emt 0:00:08]} h5 {[%emt 0:01:25]} 32. a3 {[%emt 0:01:38]} Kc5 {[%emt 0:01:20]} 33. Rb4 {[%emt 0:03:14]} Rd7 {[%emt 0:00:15]} 34. Kc2 {[%emt 0:00:35]} Ra7 {[%emt 0:00:43]} 35. Kb3 {[%emt 0:00:05]} Rd7 {[%emt 0:00:27]} 36. Re4 {[%emt 0:00:10]} e6 {[%emt 0:02:10]} 37. Kc2 {[%emt 0:01:31]} Ra7 {[%emt 0:00:52]} 38. a4 {[%emt 0:00:31]} Rb7 {[%emt 0:01:05]} 39. h4 {[%emt 0:03:08]} Kd5 {[%emt 0:02:18]} 40. Re3 {[%emt 0:01:06]} Kc4 {[%emt 0:00:31]} 41. Rc3+ {[%emt 0:00:04]} Kd5 {[%emt 0:00:20]} 42. Rb3 {[%emt 0:02:26]} Ra7 {[%emt 0:00:37]} 43. Rb4 {[%emt 0:00:06]} Kc5 {[%emt 0:00:24]} 44. Kc3 {[%emt 0:00:13]} Rd7 {[%emt 0:00:15]} 45. Rc4+ {[%emt 0:00:03]} Kb6 {[%emt 0:00:14]} 46. Rd4 {[%emt 0:00:04]} Rc7+ {[%emt 0:00:12]} 47. Kb4 {[%emt 0:00:17]} Rc2 {[%emt 0:00:39]} 48. a5+ {[%emt 0:00:04]} Ka6 {[%emt 0:01:02]} 49. Rd6+ {[%emt 0:00:04]} Ka7 {[%emt 0:00:21]} 50. Rd7+ {[%emt 0:00:02]} Ka8 {[%emt 0:00:09]} 51. Kb5 {[%emt 0:00:12]} f5 {[%emt 0:00:56]} 52. Kb6 {[%emt 0:00:17]} Rb2+ {[%emt 0:00:22]} 53. Ka6 {[%emt 0:01:46]} Kb8 {[%emt 0:00:01]} 54. Rg7 {[%emt 0:00:17]} Rxe2 {[%emt 0:00:06]} 55. f4 {[%emt 0:00:32]} e5 {[%emt 0:00:49]} 56. fxe5 {[%emt 0:00:10]} Rxe5 {[%emt 0:00:59]} 57. Rxg6 {[%emt 0:00:05]} Re4 {[%emt 0:02:25]} 58. Kb6 {[%emt 0:00:13]} Rb4+ {[%emt 0:00:30]} 59. Kc5 {[%emt 0:00:06]} Ra4 {[%emt 0:00:40]} 60. Kb5 {[%emt 0:00:23]} Ra3 {[%emt 0:00:26]} 61. Rg5 {[%emt 0:00:14]} Rb3+ {[%emt 0:00:24]} 62. Ka6 {[%emt 0:00:20]} Rf3 {[%emt 0:00:48]} 63. Kb6 {[%emt 0:00:40]} Rb3+ {[%emt 0:00:11]} 64. Kc6 {[%emt 0:00:04]} Ra3 {[%emt 0:00:50]} 65. Rxh5 {[%emt 0:00:26]} Rxg3 {[%emt 0:00:23]} 66. Rxf5 {[%emt 0:00:04]} Rg6+ {[%emt 0:00:12]} 67. Kd7 {[%emt 0:00:07]} Rh6 {[%emt 0:00:21]} 68. h5 {[%emt 0:00:05]} Rh7+ {[%emt 0:00:35]} 69. Ke8 {[%emt 0:00:17]} Kc8 {[%emt 0:00:27]} 70. Rc5+ {[%emt 0:00:05]} Kb7 {[%emt 0:00:21]} 71. Kf8 {[%emt 0:00:06]} Ka6 {[%emt 0:00:11]} 72. Kg8 {[%emt 0:00:11]} Rh6 {[%emt 0:00:13]} 73. Kg7 {[%emt 0:00:06]} Rd6 {[%emt 0:00:08]} 74. Rf5 {[%emt 0:00:10]} Rd7+ {[%emt 0:00:08]} 75. Kg6 {[%emt 0:00:05]} Rd6+ {[%emt 0:00:18]} 76. Rf6 {[%emt 0:00:31]} Rxf6+ {[%emt 0:00:05]} 77. Kxf6 {[%emt 0:00:05]} 1-0

[Event "FIDE World Cup O12-A 2024"]
[Site "Batumi"]
[Date "2024.06.28"]
[Round "6.5"]
[White "Kleschevnikov, Arseny"]
[Black "Mamikonyan, Artem T"]
[Result "1-0"]
[ECO "D35"]
[WhiteElo "1895"]
[BlackElo "1855"]
[Annotator "NA RC"]
[PlyCount "95"]
[EventDate "2024.06.23"]
[EventType "swiss"]
[EventCountry "GEO"]
[SourceTitle "playchess.com"]
[Source "ChessBase"]
[SourceQuality "1"]
[TimeControl "5400+30"]

1. d4 {[%emt 0:00:02]} d5 {[%emt 0:00:04]} 2. c4 {[%emt 0:00:04]} e6 {[%emt 0:00:03]} 3. Nc3 {[%emt 0:00:07]} Nf6 {[%emt 0:00:05]} 4. cxd5 {[%emt 0:00:04]} exd5 {[%emt 0:00:05]} 5. Bg5 {[%emt 0:00:03]} Bb4 {[%emt 0:00:05]} 6. e3 {[%emt 0:03:57]} h6 {[%emt 0:00:07]} 7. Bh4 {[%emt 0:02:33]} g5 {[%emt 0:00:20]} 8. Bg3 {[%emt 0:00:11]} Ne4 {[%emt 0:00:09]} 9. Nge2 {[%emt 0:00:10]} h5 {[%emt 0:00:09]} 10. h3 {[%emt 0:03:34]} Nxg3 {[%emt 0:21:03]} 11. Nxg3 {[%emt 0:00:07]} Bxc3+ {[%emt 0:00:31]} 12. bxc3 {[%emt 0:00:07]} h4 {[%emt 0:00:06]} 13. Nh5 {[%emt 0:11:58]} Qd6 {[%emt 0:00:35]} 14. Be2 {[%emt 0:02:26]} Be6 {[%emt 0:15:03]} 15. Qb3 {[%emt 0:29:23]} Ke7 $16 {[%emt 0:21:33]} 16. O-O {[%emt 0:27:35]} Nd7 {[%emt 0:15:23]} 17. f4 {[%emt 0:05:35]} gxf4 {[%emt 0:00:11]} 18. Nxf4 {[%emt 0:01:53]} b6 {[%emt 0:01:40]} 19. c4 {[%emt 0:03:53]} c6 {[%emt 0:00:38]} 20. cxd5 {[%emt 0:01:56]} cxd5 {[%emt 0:00:08]} 21. Bf3 {[%emt 0:02:56]} Nf6 {[%emt 0:00:09]} 22. Rac1 {[%emt 0:00:27]} Rac8 {[%emt 0:00:42]} 23. Qa4 {[%emt 0:00:54]} a5 {[%emt 0:00:32]} 24. Qb3 {[%emt 0:00:36]} Rc6 {[%emt 0:01:31]} 25. Rxc6 {[%emt 0:00:47]} Qxc6 {[%emt 0:00:04]} 26. Rb1 {[%emt 0:00:28]} Rb8 {[%emt 0:00:30]} 27. Nd3 {[%emt 0:01:15]} Qd6 {[%emt 0:02:15]} 28. Rc1 {[%emt 0:00:37]} Rc8 {[%emt 0:01:10]} 29. Rxc8 {[%emt 0:00:14]} Bxc8 {[%emt 0:00:04]} 30. Ne5 {[%emt 0:00:28]} Be6 {[%emt 0:00:54]} 31. Qc3 {[%emt 0:00:37]} Nd7 {[%emt 0:00:19]} 32. Nd3 {[%emt 0:00:41]} a4 {[%emt 0:03:03]} 33. Nf4 {[%emt 0:00:25]} b5 {[%emt 0:00:47]} 34. Qe1 {[%emt 0:00:18]} Kd8 {[%emt 0:01:19]} 35. Qxh4+ {[%emt 0:00:10]} Kc7 {[%emt 0:00:05]} 36. Qe1 {[%emt 0:00:54]} Kb6 {[%emt 0:01:18]} 37. Nd3 {[%emt 0:00:36]} Nb8 {[%emt 0:00:35]} 38. Qc3 {[%emt 0:00:55]} Na6 {[%emt 0:00:29]} 39. a3 {[%emt 0:00:22]} Bf5 {[%emt 0:04:13]} 40. Nf4 {[%emt 0:00:21]} Be4 {[%emt 0:00:10]} 41. Bxe4 {[%emt 0:00:28]} dxe4 {[%emt 0:00:05]} 42. h4 {[%emt 0:00:28]} b4 {[%emt 0:01:42]} 43. axb4 {[%emt 0:00:06]} Nxb4 {[%emt 0:00:04]} 44. h5 {[%emt 0:00:28]} Nc6 {[%emt 0:01:32]} 45. Qc5+ {[%emt 0:00:23]} Kc7 {[%emt 0:00:21]} 46. Nd5+ {[%emt 0:00:44]} Kd7 {[%emt 0:00:06]} 47. Nb6+ {[%emt 0:00:19]} Ke7 {[%emt 0:00:04]} 48. Nc8+ {[%emt 0:00:13]} 1-0

[Event "FIDE World Cup O12-A 2024"]
[Site "Batumi"]
[Date "2024.06.28"]
[Round "6.6"]
[White "Yin, Zeming"]
[Black "Nanayakkara, Sanuk"]
[Result "1-0"]
[ECO "B30"]
[WhiteElo "1832"]
[BlackElo "1714"]
[Annotator "NA RC"]
[PlyCount "85"]
[EventDate "2024.06.23"]
[EventType "swiss"]
[EventCountry "GEO"]
[SourceTitle "playchess.com"]
[Source "ChessBase"]
[SourceQuality "1"]
[TimeControl "5400+30"]

1. e4 {[%emt 0:00:09]} c5 {[%emt 0:00:07]} 2. Nf3 {[%emt 0:00:03]} Nc6 {[%emt 0:00:05]} 3. Bb5 {[%emt 0:00:02]} e5 {[%emt 0:00:19]} 4. O-O {[%emt 0:00:15]} Bd6 {[%emt 0:00:16]} 5. Re1 {[%emt 0:01:54]} Nf6 {[%emt 0:05:52]} 6. c3 {[%emt 0:00:46]} a6 {[%emt 0:01:27]} 7. Bf1 {[%emt 0:01:25]} Qc7 {[%emt 0:01:34]} 8. d4 {[%emt 0:00:27]} cxd4 {[%emt 0:09:16]} 9. cxd4 {[%emt 0:00:41]} Bb4 {[%emt 0:00:49]} 10. Bd2 {[%emt 0:04:29]} Bxd2 {[%emt 0:14:43]} 11. Qxd2 {[%emt 0:01:09]} exd4 {[%emt 0:09:37]} 12. Nxd4 {[%emt 0:09:53]} O-O {[%emt 0:03:00]} 13. Nc3 {[%emt 0:03:25]} Rd8 {[%emt 0:09:26]} 14. Rad1 {[%emt 0:12:32]} d6 {[%emt 0:06:50]} 15. Nxc6 {[%emt 0:02:05]} Qxc6 {[%emt 0:09:45]} 16. e5 {[%emt 0:01:07]} Ne8 {[%emt 0:00:30]} 17. Nd5 {[%emt 0:04:18]} Kh8 {[%emt 0:02:22]} 18. Rc1 {[%emt 0:02:13]} dxe5 {[%emt 0:06:20]} 19. Rxc6 {[%emt 0:00:09]} bxc6 {[%emt 0:00:07]} 20. Qg5 {[%emt 0:07:30]} Rxd5 {[%emt 0:05:02]} 21. Rxe5 {[%emt 0:02:52]} Be6 {[%emt 0:00:48]} 22. Rxd5 {[%emt 0:00:13]} cxd5 {[%emt 0:00:18]} 23. Qe7 {[%emt 0:00:57]} Nf6 {[%emt 0:09:10]} 24. b4 {[%emt 0:01:08]} d4 {[%emt 0:01:00]} 25. a4 {[%emt 0:00:27]} Rc8 {[%emt 0:01:17]} 26. Qd6 {[%emt 0:02:20]} Nd5 {[%emt 0:02:17]} 27. b5 {[%emt 0:02:33]} axb5 {[%emt 0:00:41]} 28. axb5 {[%emt 0:00:05]} h6 {[%emt 0:00:58]} 29. b6 {[%emt 0:00:45]} Nxb6 {[%emt 0:00:29]} 30. Qxb6 {[%emt 0:00:10]} d3 {[%emt 0:00:27]} 31. Qe3 {[%emt 0:02:10]} Bf5 {[%emt 0:00:36]} 32. g4 {[%emt 0:00:32]} Rd8 {[%emt 0:00:28]} 33. gxf5 {[%emt 0:00:16]} d2 {[%emt 0:00:28]} 34. Be2 {[%emt 0:00:07]} d1=Q+ {[%emt 0:00:34]} 35. Bxd1 {[%emt 0:00:03]} Rxd1+ {[%emt 0:00:02]} 36. Kg2 {[%emt 0:00:06]} Rd8 {[%emt 0:00:14]} 37. Qe7 {[%emt 0:00:06]} Rg8 {[%emt 0:00:08]} 38. Qxf7 {[%emt 0:00:05]} Kh7 {[%emt 0:00:13]} 39. Kh3 {[%emt 0:00:15]} Kh8 {[%emt 0:00:03]} 40. f3 {[%emt 0:00:22]} Kh7 {[%emt 0:00:06]} 41. f6 {[%emt 0:00:14]} Kh8 {[%emt 0:00:07]} 42. Qg6 {[%emt 0:00:07]} h5 {[%emt 0:00:19]} 43. Qxh5# {[%emt 0:00:38]} 1-0